bitfinex/quotes_SOLUSD_20250401
["timestamp","ask_amount","ask_price","bid_price","bid_amount"]
[1743473700556,0.03,125.18,125.16,0.28432314]
[1743473701671,0.03,125.18,125.17,26.63874886]
[1743473702073,0.03,125.18,125.17,18.64964886]
[1743473702372,0.03,125.18,125.17,25.66964886]
[1743473703666,0.03,125.18,125.17,33.65874886]
[1743473705949,0.03,125.19,125.18,18.64964886]
[1743473708066,0.03,125.19,125.18,26.63804886]
[1743473710170,0.03,125.19,125.18,26.922372]
[1743473711171,0.03,125.19,125.18,26.63804886]
[1743473712974,0.03,125.19,125.18,26.922372]
[1743473713158,2.9604704,125.21,125.19,18.64964886]
[1743473714775,2.9604704,125.21,125.2,26.63684886]
[1743473720482,7.04e-05,125.21,125.2,26.921172]
[1743473721056,7.04e-05,125.22,125.21,18.64964886]
[1743473721256,7.04e-05,125.22,125.21,25.66964886]
[1743473721460,7.04e-05,125.22,125.21,25.953972]
[1743473722165,7.04e-05,125.22,125.21,45.953972]
[1743473722678,7.04e-05,125.22,125.21,53.940472]
[1743473723084,7.04e-05,125.22,125.21,33.940472]
[1743473723285,7.04e-05,125.22,125.21,53.940472]
[1743473723484,0.03,125.28,125.21,73.906872]
[1743473724564,0.03,125.28,125.21,113.839772]
[1743473726266,9.62844691,125.28,125.22,18.933972]
[1743473726680,0.03,125.28,125.22,18.933972]
[1743473726882,0.03,125.28,125.24,18.64964886]
[1743473727074,0.03,125.28,125.23,7.9853]
[1743473727075,0.03,125.28,125.26,18.64964886]
[1743473727386,9.59844691,125.27,125.25,7.02]
[1743473727587,9.59844691,125.26,125.25,7.02]
[1743473731595,9.62844691,125.28,125.25,33.65364886]
[1743473731771,29.62844691,125.28,125.25,33.65364886]
[1743473733994,0.03,125.26,125.25,33.65364886]
[1743473740006,0.03,125.26,125.25,25.66964886]
[1743473740292,9.62844691,125.26,125.25,7.02]
[1743473741092,0.03,125.26,125.25,25.66964886]
[1743473741295,9.62844691,125.26,125.25,7.02]
[1743473742677,0.03,125.26,125.25,7.02]
[1743473743903,0.03,125.26,125.25,15.004]
[1743473745094,0.03,125.26,125.25,25.66964886]
[1743473746006,0.03,125.26,125.25,33.65364886]
[1743473754507,0.0001,125.26,125.25,33.937972]
[1743473757613,0.0001,125.26,125.25,53.937972]
[1743473759915,0.0001,125.26,125.25,60.145672]
[1743473762824,0.0001,125.26,125.25,52.98351043]
[1743473763000,0.03,125.31,125.29,18.933972]
[1743473763333,0.03,125.31,125.3,7.02]
[1743473763625,0.03,125.31,125.3,15.0008]
[1743473764800,0.03,125.31,125.3,7.02]
[1743473767005,0.03,125.31,125.3,15.0008]
[1743473772117,20.0,125.37,125.32,0.14216157]
[1743473772504,29.59844691,125.37,125.32,0.14216157]
[1743473773106,29.59844691,125.37,125.34,18.64964886]
[1743473773424,29.59844691,125.37,125.35,7.02]
[1743473774224,8.59844691,125.36,125.35,7.02]
[1743473774404,10.26094691,125.36,125.33,7.02]
[1743473774601,29.59844691,125.34,125.33,7.02]
[1743473775013,20.0,125.34,125.33,7.02]
[1743473775306,9.59844691,125.35,125.33,14.9989]
[1743473775919,11.26094691,125.36,125.33,14.9989]
[1743473777029,9.59844691,125.37,125.34,18.64964886]
[1743473777528,9.59844691,125.37,125.34,26.62764886]
[1743473778009,9.59844691,125.36,125.34,18.64964886]
[1743473778513,9.59844691,125.36,125.33,14.9987]
[1743473778960,20.0,125.37,125.34,18.64964886]
[1743473779246,29.59844691,125.37,125.34,18.64964886]
[1743473780030,9.59844691,125.36,125.34,18.64964886]
[1743473780440,9.59844691,125.35,125.31,18.64964886]
[1743473780740,9.59844691,125.35,125.34,7.02]
[1743473781936,20.0,125.37,125.34,7.02]
[1743473781937,9.59844691,125.36,125.34,7.02]
[1743473783351,9.59844691,125.35,125.34,7.02]
[1743473783858,9.59844691,125.35,125.33,0.063]
[1743473784025,9.59844691,125.34,125.33,7.083]
[1743473787451,17.57664691,125.34,125.33,0.063]
[1743473788054,9.59844691,125.34,125.33,0.063]
[1743473790946,20.0,125.34,125.33,0.063]
[1743473791154,29.59844691,125.34,125.33,0.063]
[1743473792644,20.0,125.34,125.33,0.063]
[1743473792955,9.59844691,125.34,125.33,0.063]
[1743473793248,8.0525,125.36,125.33,0.063]
[1743473793458,9.59844691,125.34,125.33,0.063]
[1743473794849,9.59844691,125.35,125.33,0.063]
[1743473795632,9.62844691,125.36,125.33,0.063]
[1743473796765,9.59844691,125.35,125.33,0.063]
[1743473797447,9.62844691,125.36,125.33,0.063]
[1743473797641,9.62844691,125.36,125.33,8.0419]
[1743473799062,9.62844691,125.36,125.33,0.063]
[1743473799439,9.59844691,125.35,125.33,0.063]
[1743473800555,0.03,125.36,125.33,0.063]
[1743473800854,9.59844691,125.35,125.33,0.063]
[1743473802055,9.62844691,125.36,125.33,0.063]
[1743473802541,0.03,125.36,125.33,0.063]
[1743473804846,0.03,125.36,125.33,0.20516157]
[1743473805657,0.03,125.36,125.34,7.9782]
[1743473805858,0.03,125.36,125.35,25.66964886]
[1743473806642,0.03,125.36,125.35,32.02944886]
[1743473806843,0.0001,125.36,125.35,33.892572]
[1743473807042,2.9604704,125.46,125.36,0.28432314]
[1743473807238,2.9604704,125.46,125.38,0.14216157]
[1743473807455,9.59844691,125.44,125.4,18.64964886]
[1743473807946,12.55891731,125.46,125.42,18.64964886]
[1743473808263,2.9604704,125.46,125.44,18.64964886]
[1743473809963,2.9604704,125.46,125.44,26.62094886]
[1743473811649,2.9604704,125.46,125.45,0.28432314]
[1743473812056,2.9604704,125.46,125.45,33.304972]
[1743473812650,7.04e-05,125.46,125.45,33.304972]
[1743473813259,7.04e-05,125.46,125.45,40.16281043]
[1743473814087,7.04e-05,125.46,125.45,25.64964886]
[1743473815456,7.04e-05,125.46,125.45,7.0]
[1743473816050,14.87850627,125.46,125.45,7.0]
[1743473816247,7.04e-05,125.46,125.45,15.11346157]
[1743473816450,7.04e-05,125.46,125.43,26.62214886]
[1743473816677,7.04e-05,125.46,125.45,7.0]
[1743473817172,14.87850627,125.46,125.45,7.0]
[1743473818486,7.04e-05,125.46,125.45,7.0]
[1743473818850,7.04e-05,125.46,125.45,14.9713]
[1743473820172,0.0300704,125.46,125.45,14.9713]
[1743473821481,0.0300704,125.46,125.45,33.62094886]
[1743473821654,7.04e-05,125.46,125.45,33.76311043]
[1743473823383,5.6e-05,125.46,125.45,33.76311043]
[1743473824076,5.6e-05,125.46,125.45,26.62094886]
[1743473824284,5.6e-05,125.46,125.45,33.62094886]
[1743473825464,5.6e-05,125.46,125.45,33.76311043]
[1743473826518,5.6e-05,125.46,125.45,33.62094886]
[1743473826990,14.87849187,125.46,125.45,7.0]
[1743473827169,14.87849187,125.46,125.45,14.9713]
[1743473827376,14.87849187,125.46,125.45,7.0]
[1743473828987,14.87849187,125.46,125.45,14.9713]
[1743473828988,5.6e-05,125.46,125.45,14.9713]
[1743473829591,5.6e-05,125.46,125.45,7.0]
[1743473829895,14.87849187,125.46,125.45,7.0]
[1743473830667,5.6e-05,125.46,125.45,14.9713]
[1743473832774,5.6e-05,125.46,125.45,7.0]
[1743473832974,14.87849187,125.46,125.45,7.0]
[1743473833205,14.90849187,125.46,125.45,7.0]
[1743473833506,0.030056,125.46,125.45,33.62094886]
[1743473836531,5.6e-05,125.46,125.45,33.76311043]
[1743473836696,5.6e-05,125.46,125.45,39.99511043]
[1743473836885,5.6e-05,125.46,125.45,39.85294886]
[1743473840380,5.6e-05,125.46,125.45,33.62094886]
[1743473843188,14.87849187,125.46,125.42,7.9732]
[1743473843393,14.87843587,125.43,125.41,237.8136]
[1743473843603,14.87843587,125.43,125.42,7.0]
[1743473844018,14.87843587,125.43,125.4,26.62384886]
[1743473844326,14.87843587,125.43,125.41,7.0]
[1743473844496,22.84969187,125.46,125.41,7.0]
[1743473844685,14.87843587,125.42,125.39,18.64964886]
[1743473844891,14.87843587,125.42,125.39,26.62444886]
[1743473845111,14.87843587,125.43,125.4,7.0]
[1743473845314,16.42663587,125.44,125.4,7.0]
[1743473845527,14.87843587,125.45,125.4,7.0]
[1743473845822,5.6e-05,125.46,125.41,18.933972]
[1743473846558,5.6e-05,125.46,125.42,7.9732]
[1743473846819,5.6e-05,125.46,125.43,25.68964886]
[1743473848506,5.6e-05,125.46,125.44,7.9719]
[1743473848703,5.6e-05,125.46,125.45,18.64964886]
[1743473848895,5.6e-05,125.46,125.44,7.9719]
[1743473852226,5.6e-05,125.46,125.45,18.64964886]
[1743473852727,5.6e-05,125.46,125.44,7.9719]
[1743473852924,5.6e-05,125.46,125.43,33.66204886]
[1743473852925,14.87849187,125.46,125.43,33.66204886]
[1743473853506,5.6e-05,125.46,125.43,33.66204886]
[1743473853707,5.6e-05,125.46,125.44,18.64964886]
[1743473855228,5.6e-05,125.46,125.45,7.9713]
[1743473856628,5.6e-05,125.46,125.43,26.9714]
[1743473856629,5.6e-05,125.46,125.43,7.04]
[1743473856833,14.87849187,125.46,125.43,15.0123]
[1743473857019,14.87843587,125.45,125.44,0.063]
[1743473857330,14.87849187,125.46,125.44,0.063]
[1743473857731,14.87849187,125.46,125.44,7.123]
[1743473857732,14.87843587,125.45,125.44,7.123]
[1743473857931,5.6e-05,125.46,125.44,7.123]
[1743473858138,14.87849187,125.46,125.44,7.123]
[1743473858428,14.87843587,125.45,125.44,0.063]
[1743473860339,22.84973587,125.45,125.44,0.063]
[1743473862143,14.87843587,125.45,125.44,0.063]
[1743473863224,22.84973587,125.45,125.44,0.063]
[1743473863939,23.34973587,125.45,125.44,0.063]
[1743473864324,23.63405901,125.45,125.44,0.063]
[1743473864518,20.0,125.42,125.39,7.06]
[1743473864724,14.87843587,125.4,125.39,7.06]
[1743473865827,14.87843587,125.41,125.39,7.06]
[1743473866137,14.87843587,125.4,125.39,7.06]
[1743473866529,14.87843587,125.4,125.38,7.08]
[1743473866844,14.87843587,125.39,125.38,7.08]
[1743473867041,14.87843587,125.39,125.34,26.62784886]
[1743473867246,14.87843587,125.38,125.34,26.62784886]
[1743473867428,14.87843587,125.36,125.35,7.08]
[1743473867833,14.87843587,125.37,125.35,7.08]
[1743473868027,14.87843587,125.37,125.36,7.08]
[1743473868417,2.0142,125.45,125.36,25.72964886]
[1743473868620,2.0142,125.45,125.37,18.64964886]
[1743473868621,14.87843587,125.42,125.37,18.64964886]
[1743473869032,14.87843587,125.42,125.36,7.08]
[1743473869228,14.87843587,125.41,125.36,7.08]
[1743473869436,14.87843587,125.42,125.36,7.08]
[1743473869947,20.0,125.43,125.36,7.08]
[1743473870129,1.5142,125.45,125.38,18.64964886]
[1743473870130,14.87843587,125.42,125.38,18.64964886]
[1743473870322,14.87843587,125.43,125.38,18.64964886]
[1743473870653,34.87843587,125.43,125.38,18.64964886]
[1743473870948,14.87843587,125.43,125.38,18.64964886]
[1743473871333,14.87843587,125.43,125.39,7.9751]
[1743473871534,14.87843587,125.43,125.4,7.1]
[1743473872122,1.5142,125.45,125.41,18.64964886]
[1743473872123,14.87843587,125.45,125.41,18.64964886]
[1743473872328,14.87849187,125.46,125.41,18.64964886]
[1743473872739,14.87843587,125.44,125.41,18.64964886]
[1743473873244,14.87843587,125.42,125.41,7.1]
[1743473873740,14.87843587,125.43,125.41,15.0738]
[1743473873941,14.87843587,125.44,125.41,15.0738]
[1743473874127,14.87843587,125.45,125.41,15.0738]
[1743473874733,14.87843587,125.43,125.41,7.1]
[1743473874936,14.87843587,125.43,125.41,15.0738]
[1743473875952,14.87843587,125.43,125.41,7.1]
[1743473876563,14.87843587,125.42,125.41,7.1]
[1743473878151,5.6e-05,125.46,125.41,7.1]
[1743473878333,14.87843587,125.44,125.41,7.1]
[1743473879057,14.87843587,125.43,125.41,7.1]
[1743473880457,14.87843587,125.42,125.41,7.1]
[1743473881156,14.87843587,125.43,125.41,7.1]
[1743473881742,14.87843587,125.44,125.41,15.0736]
[1743473881949,5.6e-05,125.46,125.41,15.0736]
[1743473882149,14.87843587,125.44,125.41,15.0736]
[1743473883446,14.90843587,125.44,125.41,15.0736]
[1743473883952,0.03,125.44,125.41,15.0736]
[1743473884455,14.87843587,125.43,125.41,7.1]
[1743473884660,14.87843587,125.42,125.41,7.1]
[1743473885040,14.87843587,125.43,125.41,7.1]
[1743473885436,14.87843587,125.43,125.41,15.0734]
[1743473885762,14.87843587,125.43,125.41,7.1]
[1743473886148,14.87843587,125.43,125.4,7.9742]
[1743473886347,14.87843587,125.43,125.41,7.12]
[1743473886758,14.90843587,125.44,125.41,7.12]
[1743473887056,0.03,125.44,125.41,7.12]
[1743473887660,14.90843587,125.44,125.41,7.12]
[1743473887872,14.87843587,125.43,125.41,7.12]
[1743473890180,0.03,125.44,125.41,15.0938]
[1743473890351,0.03,125.44,125.42,18.64964886]
[1743473891078,0.03,125.44,125.41,35.0284]
[1743473891866,0.03,125.44,125.41,15.0938]
[1743473892051,14.87843587,125.43,125.41,7.12]
[1743473892552,14.87843587,125.43,125.41,15.0938]
[1743473892739,14.90843587,125.44,125.41,15.0938]
[1743473893471,0.03,125.44,125.41,15.0938]
[1743473897108,0.03,125.44,125.42,18.64964886]
[1743473897282,0.03,125.44,125.42,26.55584886]
[1743473899201,0.03,125.44,125.43,26.62214886]
[1743473904305,0.03,125.44,125.42,7.9731]
[1743473904507,0.03,125.44,125.41,7.12]
[1743473904508,0.03,125.44,125.43,7.08]
[1743473905301,0.03,125.44,125.41,7.9738]
[1743473905474,5.6e-05,125.46,125.45,21.5139]
[1743473905676,5.6e-05,125.46,125.45,28.419172]
[1743473906696,5.6e-05,125.46,125.45,28.13484886]
[1743473906913,5.6e-05,125.46,125.45,35.35484886]
[1743473907075,5.6e-05,125.46,125.45,28.13484886]
[1743473907277,5.6e-05,125.46,125.45,33.84094886]
[1743473907985,5.6e-05,125.46,125.45,15.1913]
[1743473909912,14.87849187,125.46,125.45,7.22]
[1743473910281,14.87849187,125.46,125.45,15.1913]
[1743473910485,5.6e-05,125.46,125.45,7.9713]
[1743473915800,5.6e-05,125.46,125.45,26.62094886]
[1743473916005,5.6e-05,125.46,125.45,34.961072]
[1743473917094,5.6e-05,125.46,125.45,34.67674886]
[1743473917406,5.6e-05,125.46,125.45,33.84094886]
[1743473917981,5.6e-05,125.46,125.45,15.1913]
[1743473919806,5.6e-05,125.46,125.45,15.47562314]
[1743473919983,5.6e-05,125.46,125.45,34.125272]
[1743473920184,5.6e-05,125.46,125.45,42.008872]
[1743473921220,14.87843587,125.5,125.45,7.9713]
[1743473921507,14.87843587,125.51,125.46,18.64964886]
[1743473921806,14.87843587,125.52,125.46,18.64964886]
[1743473921978,20.91233587,125.53,125.46,18.64964886]
[1743473922184,20.91233587,125.53,125.47,7.97]
[1743473922383,20.91233587,125.53,125.48,7.26]
[1743473922699,14.87843587,125.53,125.48,7.26]
[1743473922892,14.87843587,125.51,125.48,7.26]
[1743473923095,14.87843587,125.5,125.48,7.26]
[1743473923301,20.0,125.52,125.48,7.26]
[1743473923505,0.5,125.54,125.48,7.26]
[1743473923506,14.87843587,125.51,125.48,7.26]
[1743473924081,14.87843587,125.5,125.48,7.26]
[1743473924801,22.84603587,125.51,125.48,7.26]
[1743473925505,14.87843587,125.51,125.48,7.26]
[1743473925711,22.84593587,125.51,125.48,7.26]
[1743473925891,14.87843587,125.5,125.48,7.26]
[1743473926299,14.87843587,125.49,125.44,18.64964886]
[1743473926616,14.87843587,125.48,125.45,7.26]
[1743473926905,14.87843587,125.47,125.45,7.26]
[1743473927411,9.4858,125.5,125.45,7.26]
[1743473927590,14.87843587,125.49,125.45,7.26]
[1743473928291,24.36423587,125.5,125.45,7.26]
[1743473928512,7.9677,125.51,125.45,7.26]
[1743473928805,14.87843587,125.5,125.45,7.26]
[1743473930706,7.9677,125.51,125.45,15.2307]
[1743473930707,14.87843587,125.51,125.45,15.2307]
[1743473932310,14.87843587,125.51,125.46,18.64964886]
[1743473932517,14.35740012,125.53,125.46,18.64964886]
[1743473932518,14.87843587,125.52,125.46,18.64964886]
[1743473932812,14.87843587,125.53,125.46,18.64964886]
[1743473933011,14.87843587,125.52,125.46,18.64964886]
[1743473933233,7.9664,125.53,125.46,18.64964886]
[1743473933234,14.87843587,125.51,125.46,18.64964886]
[1743473934226,14.87843587,125.52,125.48,18.64964886]
[1743473934526,14.87843587,125.53,125.49,7.24]
[1743473934702,14.90843587,125.53,125.49,7.24]
[1743473935432,14.90843587,125.53,125.49,15.2081]
[1743473936220,0.03,125.53,125.49,15.2081]
[1743473936900,0.03,125.53,125.5,18.64964886]
[1743473937320,0.03,125.53,125.51,7.9674]
[1743473937718,0.03,125.53,125.52,18.64964886]
[1743473938419,0.03,125.53,125.51,7.9674]
[1743473939405,0.03,125.53,125.49,45.81154886]
[1743473939406,0.03,125.53,125.5,46.53804886]
[1743473940315,0.03,125.53,125.5,26.61774886]
[1743473941602,0.03,125.53,125.5,46.53804886]
[1743473942002,0.03,125.53,125.52,18.64964886]
[1743473943624,0.03,125.53,125.52,26.61644886]
[1743473944721,0.03,125.53,125.52,33.265672]
[1743473952126,0.03,125.53,125.52,26.61644886]
[1743473952423,0.03,125.53,125.52,33.79644886]
[1743473962735,0.03,125.53,125.52,25.82964886]
[1743473962947,0.03,125.53,125.49,7.9687]
[1743473963114,14.90843587,125.53,125.48,237.6691]
[1743473963315,14.87843587,125.52,125.49,25.80964886]
[1743473963732,9.5542757,125.53,125.49,25.80964886]
[1743473964222,11.1677757,125.53,125.49,18.64964886]
[1743473964417,11.1677757,125.53,125.5,7.16]
[1743473964624,9.5242757,125.52,125.5,7.16]
[1743473965717,14.88337363,125.52,125.5,7.16]
[1743473965916,16.52687363,125.53,125.5,7.16]
[1743473966438,14.88337363,125.52,125.5,7.16]
[1743473966738,14.88337363,125.51,125.5,7.16]
[1743473966942,14.88337363,125.51,125.46,0.063]
[1743473967118,81.3,125.52,125.46,0.063]
[1743473967119,96.18337363,125.52,125.46,0.063]
[1743473967317,14.88337363,125.5,125.46,26.68314886]
[1743473967642,14.88337363,125.51,125.46,26.68314886]
[1743473967822,14.88337363,125.5,125.46,18.71264886]
[1743473968544,14.88337363,125.49,125.46,18.71264886]
[1743473969641,14.88337363,125.5,125.46,18.71264886]
[1743473971745,14.88337363,125.5,125.46,26.68314886]
[1743473975039,14.88337363,125.52,125.46,26.68314886]
[1743473975246,16.52687363,125.53,125.46,26.68314886]
[1743473975423,16.52687363,125.53,125.46,46.60974886]
[1743473975823,14.88337363,125.52,125.46,46.60974886]
[1743473976024,1.6435,125.53,125.46,46.60974886]
[1743473976330,16.52687363,125.53,125.46,46.60974886]
[1743473976747,1.6435,125.53,125.46,46.60974886]
[1743473976947,0.03,125.53,125.46,46.60974886]
[1743473979345,14.91337363,125.53,125.46,46.60974886]
[1743473982529,0.03,125.53,125.47,0.28432314]
[1743473983629,0.03,125.53,125.49,18.64964886]
[1743473983830,0.03,125.53,125.51,18.64964886]
[1743473984529,0.03,125.53,125.5,7.16]
[1743473985153,0.03,125.53,125.51,18.64964886]
[1743473986038,0.03,125.53,125.51,26.61684886]
[1743473987055,0.03,125.53,125.51,18.64964886]
[1743473988036,9.52189328,125.52,125.5,7.16]
[1743473988366,9.52189328,125.51,125.49,7.14]
[1743473988536,9.52189328,125.5,125.47,7.14]
[1743473988959,9.52189328,125.49,125.47,7.14]
[1743473989371,9.52189328,125.48,125.47,7.14]
[1743473989665,46.84587312,125.52,125.47,7.14]
[1743473989666,29.52189328,125.49,125.47,7.14]
[1743473991645,9.52189328,125.48,125.46,0.063]
[1743473991868,9.52189328,125.48,125.46,7.203]
[1743473993058,8.2583,125.52,125.47,18.64964886]
[1743473993377,89.80742661,125.53,125.47,18.64964886]
[1743473993378,9.55189328,125.53,125.47,18.64964886]
[1743473995176,9.55189328,125.53,125.49,18.64964886]
[1743473995341,9.55189328,125.53,125.5,7.12]
[1743473996060,0.03,125.53,125.51,18.64964886]
[1743473996363,0.03,125.53,125.5,7.12]
[1743473997268,0.03,125.53,125.51,26.61704886]
[1743474001148,9.52189328,125.52,125.51,7.1]
[1743474001348,9.52189328,125.52,125.47,7.9697]
[1743474001559,9.52189328,125.52,125.48,25.74964886]
[1743474002643,9.52189328,125.51,125.48,25.74964886]
[1743474003667,9.52189328,125.51,125.48,33.71884886]
[1743474004770,9.52189328,125.52,125.48,33.71884886]
[1743474006376,20.0,125.52,125.48,33.71884886]
[1743474006549,29.55189328,125.53,125.49,18.64964886]
[1743474006957,29.55189328,125.53,125.48,15.0692]
[1743474007368,9.52189328,125.51,125.48,15.0692]
[1743474007565,20.03,125.53,125.48,15.0692]
[1743474007765,29.55189328,125.53,125.48,15.0692]
[1743474008048,9.52189328,125.5,125.48,7.1]
[1743474008276,9.52189328,125.49,125.46,0.063]
[1743474008462,9.52189328,125.49,125.47,7.12]
[1743474008862,9.52189328,125.48,125.47,7.14]
[1743474009066,9.52189328,125.48,125.46,7.203]
[1743474011269,9.52189328,125.48,125.46,0.063]
[1743474011573,38.58757312,125.52,125.46,7.183]
[1743474011574,9.52189328,125.47,125.46,7.183]
[1743474012157,9.52189328,125.47,125.46,0.063]
[1743474012460,9.52189328,125.47,125.46,7.183]
[1743474013162,9.52189328,125.47,125.46,0.063]
[1743474013362,9.52189328,125.47,125.46,7.183]
[1743474013564,9.52189328,125.48,125.46,7.183]
[1743474014676,9.52189328,125.47,125.46,7.183]
[1743474014973,9.52189328,125.47,125.46,0.063]
[1743474015164,9.5701,125.5,125.46,0.063]
[1743474015365,9.52189328,125.48,125.46,0.063]
[1743474016279,9.52189328,125.47,125.46,0.063]
[1743474019585,9.52189328,125.48,125.46,0.063]
[1743474020561,9.52189328,125.47,125.46,0.063]
[1743474025179,17.77621642,125.47,125.46,0.063]
[1743474025482,66.9598057,125.47,125.46,0.063]
[1743474025790,28.37223258,125.47,125.46,0.063]
[1743474025989,20.40223258,125.47,125.46,0.063]
[1743474026175,9.52189328,125.47,125.46,0.063]
[1743474027976,9.52189328,125.49,125.46,0.063]
[1743474028983,0.14216157,125.46,125.41,0.063]
[1743474029192,9.52189328,125.42,125.41,0.063]
[1743474030086,29.52189328,125.43,125.41,0.063]
[1743474031370,9.52189328,125.42,125.41,0.063]
[1743474032374,9.66405485,125.42,125.41,0.063]
[1743474033774,19.29781642,125.42,125.41,0.063]
[1743474033971,20.0,125.4,125.39,0.063]
[1743474034290,67.6094664,125.4,125.39,0.063]
[1743474038496,29.52189328,125.4,125.39,0.063]
[1743474039797,37.49629328,125.4,125.39,0.063]
[1743474040089,0.14216157,125.39,125.33,18.71264886]
[1743474040292,81.3,125.38,125.33,0.063]
[1743474040492,9.52189328,125.34,125.33,0.063]
[1743474041079,0.14216157,125.39,125.33,26.69154886]
[1743474041280,29.52189328,125.37,125.34,7.14]
[1743474041672,9.52189328,125.36,125.34,7.14]
[1743474042303,9.52189328,125.36,125.34,15.1179]
[1743474046300,9.52189328,125.35,125.34,7.14]
[1743474047295,9.52189328,125.35,125.34,15.1182]
[1743474049987,29.52189328,125.35,125.33,15.1618]
[1743474050285,9.52189328,125.34,125.33,15.1618]
[1743474050486,29.52189328,125.35,125.33,15.1618]
[1743474050896,0.14216157,125.39,125.33,15.1618]
[1743474051095,9.52189328,125.37,125.33,15.1618]
[1743474051504,9.52189328,125.37,125.34,18.64964886]
[1743474053106,0.14216157,125.39,125.35,7.9776]
[1743474053311,9.52189328,125.36,125.35,7.9776]
[1743474053495,9.52189328,125.36,125.33,7.183]
[1743474053811,9.52189328,125.34,125.33,15.1616]
[1743474054015,9.52189328,125.34,125.33,7.183]
[1743474054791,9.52189328,125.34,125.33,0.063]
[1743474055205,9.52189328,125.35,125.33,0.063]
[1743474058010,9.52189328,125.36,125.33,18.71264886]
[1743474058321,9.52189328,125.37,125.33,18.71264886]
[1743474059219,9.52189328,125.36,125.33,18.71264886]
[1743474060110,9.52189328,125.35,125.34,7.9782]
[1743474060294,9.52189328,125.35,125.33,0.063]
[1743474060610,9.52189328,125.34,125.32,0.063]
[1743474060820,9.52189328,125.34,125.32,8.0424]
[1743474061724,14.92490624,125.34,125.32,8.0424]
[1743474062103,14.92490624,125.34,125.32,0.063]
[1743474064423,14.92490624,125.33,125.32,0.063]
[1743474065714,0.03,125.39,125.32,18.71264886]
[1743474065914,0.17216157,125.39,125.33,1.6108]
[1743474066218,14.92490624,125.36,125.34,7.14]
[1743474066601,14.92490624,125.36,125.35,18.64964886]
[1743474067602,14.92490624,125.37,125.35,26.62664886]
[1743474068000,14.92490624,125.38,125.35,26.62664886]
[1743474068400,0.03,125.39,125.35,46.57074886]
[1743474068698,0.03,125.39,125.35,52.73044886]
[1743474068899,14.95490624,125.39,125.35,52.73044886]
[1743474070634,14.92490624,125.38,125.35,32.78634886]
[1743474070927,14.92490624,125.36,125.35,26.62664886]
[1743474071303,14.92490624,125.37,125.35,26.62664886]
[1743474072621,0.03,125.39,125.35,26.62664886]
[1743474072622,14.92490624,125.36,125.35,26.62664886]
[1743474072820,0.03,125.39,125.35,26.62664886]
[1743474073020,14.92490624,125.37,125.35,26.62664886]
[1743474074612,14.92490624,125.37,125.36,25.76964886]
[1743474075329,14.92490624,125.37,125.36,33.74664886]
[1743474075827,14.92490624,125.37,125.36,15.097]
[1743474076025,34.92490624,125.38,125.36,15.097]
[1743474077729,34.92490624,125.38,125.36,25.76964886]
[1743474077927,14.92490624,125.37,125.36,7.12]
[1743474078307,14.92490624,125.37,125.32,8.0419]
[1743474078523,14.92490624,125.34,125.33,7.12]
[1743474079122,14.92490624,125.35,125.33,7.12]
[1743474079633,14.92490624,125.35,125.34,7.12]
[1743474079824,0.03,125.37,125.34,7.12]
[1743474079825,20.0,125.36,125.34,7.12]
[1743474080024,14.92490624,125.35,125.34,7.12]
[1743474080729,34.92490624,125.36,125.34,7.12]
[1743474080914,14.92490624,125.36,125.34,7.12]
[1743474081934,14.92490624,125.36,125.35,7.9776]
[1743474082322,14.92490624,125.36,125.34,15.098]
[1743474082630,14.92490624,125.36,125.34,7.978]
[1743474082930,14.92490624,125.35,125.34,7.1]
[1743474083234,0.03,125.37,125.34,7.1]
[1743474083439,14.95490624,125.37,125.34,7.1]
[1743474084032,14.95490624,125.37,125.35,7.9776]
[1743474086214,14.92490624,125.36,125.35,7.9776]
[1743474086539,14.92490624,125.36,125.34,15.0781]
[1743474087234,14.92490624,125.35,125.34,15.0781]
[1743474090227,14.92490624,125.35,125.34,33.72774886]
[1743474090937,14.92490624,125.35,125.33,0.063]
[1743474091237,14.92490624,125.34,125.33,0.063]